fUSD/lending_fUSD_20250620
["ID","MTS","AMOUNT","RATE_DAILY","PERIOD"]
[366787353,1750453840633,-500.0,0.00026027,2]
[366787355,1750453840643,-500.0,0.00026027,2]
[366787357,1750453840654,-275.03604552,0.00026027,2]
[366787360,1750453840671,-500.0,0.00026027,2]
[366787362,1750453840683,-500.0,0.00026027,2]
[366787364,1750453840694,-500.0,0.00026027,2]
[366787366,1750453840706,-500.0,0.00026027,2]
[366787368,1750453840717,-500.0,0.00026027,2]
[366787370,1750453840727,-500.0,0.00026027,2]
[366787371,1750453840738,-500.0,0.00026027,2]
[366787372,1750453840748,-500.0,0.00026027,2]
[366787373,1750453840759,-500.0,0.00026027,2]
[366787374,1750453840770,-604.46242712,0.0002603,2]
[366787375,1750453840781,-255.2031546,0.00026036,2]
[366787376,1750453840792,-604.46242712,0.0002604,2]
[366787377,1750453840802,-2000.0,0.00026045,2]
[366787378,1750453840814,-239.24796825,0.00026048,2]
[366787379,1750453840825,-5000.0,0.00026049,2]
[366787380,1750453840835,-8091.5381,0.00026049,3]
[366787381,1750453840845,-1000.0,0.00026049,2]
[366787382,1750453840857,-151.0,0.0002605,7]
[366787383,1750453840867,-151.0,0.0002605,7]
[366787384,1750453840877,-151.0,0.0002605,7]
[366787385,1750453840887,-151.0,0.0002605,7]
[366787386,1750453840899,-151.0,0.0002605,7]
[366787387,1750453840910,-154.823371,0.0002605,7]
[366787388,1750453840920,-151.0,0.0002605,7]
[366787389,1750453840930,-45262.3713,0.0002605,2]
[366787390,1750453840940,-255.2031546,0.00026054,2]
[366787391,1750453840951,-604.46242712,0.00026057,2]
[366787392,1750453840962,-150.0,0.00026057,2]
[366787393,1750453840972,-10396.15708369,0.00026064,2]
[366787394,1750453840982,-255.2031546,0.00026072,2]
[366787395,1750453840993,-151.0,0.00026073,7]
[366787396,1750453841003,-151.0,0.00026073,7]
[366787397,1750453841014,-12949.00579545,0.0002608,2]
[366787398,1750453841024,-255.2031546,0.00026091,2]
[366787399,1750453841035,-181.08010149,0.00026106,2]
[366787400,1750453841045,-150.0,0.00026107,2]
[366787401,1750453841055,-255.2031546,0.00026109,2]
[366787402,1750453841066,-10396.15708369,0.00026119,2]
[366787403,1750453841076,-150.0,0.00026123,2]
[366787404,1750453841087,-190.77369503,0.00026126,2]
[366787405,1750453841097,-255.2031546,0.00026127,2]
[366787406,1750453841107,-1208.92485424,0.00026128,2]
[366787407,1750453841117,-1813.38728136,0.00026129,2]
[366787408,1750453841127,-150.0,0.00026132,2]
[366787409,1750453841137,-298.22195292,0.00026137,2]
[366787410,1750453841147,-2417.84970848,0.00026138,2]
[366787411,1750453841157,-170.66987092,0.00026138,2]
[366787412,1750453841167,-151.0,0.00026138,7]
[366787413,1750453841177,-706.26,0.00026138,4]
[366787414,1750453841187,-3159.55,0.00026138,4]
[366787415,1750453841197,-152.042463,0.00026139,7]
[366787416,1750453841208,-151.0,0.00026139,7]
[366787417,1750453841218,-151.0,0.00026139,7]
[366787418,1750453841228,-151.0,0.00026139,7]
[366787419,1750453841238,-151.0,0.00026139,7]
[366787420,1750453841248,-274.97584,0.00026139,7]
[366787421,1750453841258,-274.97584,0.00026139,7]
[366787422,1750453841268,-151.0,0.00026139,7]
[366787423,1750453841278,-151.0,0.00026139,7]
[366787424,1750453841290,-151.0,0.00026139,7]
[366787425,1750453841301,-151.0,0.00026139,7]
[366787426,1750453841312,-151.0,0.00026139,7]
[366787427,1750453841322,-255.2031546,0.00026145,2]
[366787428,1750453841333,-162.69437358,0.00026146,2]
[366787429,1750453841343,-666.0,0.00026147,2]
[366787430,1750453841353,-666.0,0.00026147,2]
[366787431,1750453841364,-5030.48995887,0.00026148,5]
[366787432,1750453841374,-823196.39783347,0.00026148,5]
[366787433,1750453841406,-20730.70999999,0.00026148,5]
[366787434,1750453841660,-490.0,0.00025949,4]
[366787435,1750453841670,-165860.45451586,0.00026148,5]
[366787436,1750453841871,-252.81744958,0.00026148,5]
[366787437,1750453842087,-2.15619999,0.00026148,5]
[366787438,1750453843308,-153.15803,0.00026,7]
[366787439,1750453843319,-99.31197,0.00026148,5]
[366787440,1750453843330,-299.04,0.00026148,5]
[366787441,1750453843345,-320.39944092,0.00026148,5]
[366787442,1750453843498,-392.53342564,0.00026148,5]
[366787443,1750453843514,-881.27227305,0.00026148,5]
[366787457,1750453846215,-217.0242182,0.0002589,2]
[366787458,1750453846225,-500.0,0.0002589,2]
[366787459,1750453846235,-674.33000353,0.0002589,2]
[366787460,1750453846244,-500.0,0.0002589,2]
[366787461,1750453846254,-500.0,0.0002589,2]
[366787462,1750453846264,-276.52381323,0.0002589,2]
[366787463,1750453846375,-76.63227022,0.0002589,2]
[366787464,1750453846385,-371.56721226,0.0002589,2]
[366787465,1750453846394,-84.64362738,0.0002589,2]
[366787475,1750453871601,201.0,0.00022366,2]
[366787476,1750453881967,250.0,0.00015,2]
[366787477,1750453939329,195.0,0.00023102,2]
[366787478,1750454361256,158.57,0.00013699,2]
[366787479,1750454361335,158.57,0.00022505,2]
[366787481,1750454716504,4135.6018139,0.0002,2]
[366787482,1750454717980,20000.0,0.00021,2]
[366787483,1750454723356,1664.66779731,0.0001994,2]
[366787484,1750454730088,521.6,0.000199,2]
[366787485,1750454754660,516.03332422,0.00021918,2]
[366787486,1750454761128,9032.76397785,0.0002001,2]
[366787487,1750454793133,18179.77157149,0.0002,2]
[366787488,1750454801137,233.23133213,0.0002211,2]
[366787490,1750454828958,22014.01102945,0.000207,2]
[366787491,1750454830177,34432.5821326,0.000225,2]
[366787494,1750454850550,4981.44938861,0.0002001,2]
[366787496,1750454862488,6067.39246113,0.0002,2]
[366787497,1750454863707,1680.70686081,0.0002015,2]
[366787498,1750454895858,507.76317988,0.0002271,2]
[366787499,1750454897344,2000.0,0.00023102,2]
[366787501,1750454909860,248.87075835,0.00022,2]
[366787502,1750454913744,5772.0,0.0002001,2]
[366787503,1750454918929,-250.0,0.000232,2]
[366787504,1750454920567,1159.72168407,0.00021,2]
[366787505,1750454920940,191.4063137,0.00021,2]
[366787507,1750454924121,13025.52535584,0.000195,2]
[366787508,1750454924246,500.0,0.00022,2]
[366787509,1750454926726,75290.37634109,0.0002,2]
[366787510,1750454928107,1000.0,0.000165,2]
[366787514,1750454932410,-161.2844212,0.000232,2]
[366787515,1750454946144,-171.10777775,0.00023199,2]
[366787520,1750454960703,-128.89222225,0.00023199,2]
[366787521,1750454960726,-76.31432995,0.000232,2]
[366787522,1750454976176,-193.35847724,0.000232,2]
[366787526,1750454991854,-314.72844166,0.000232,2]
[366787527,1750454994247,-161.12306465,0.000232,2]
[366787528,1750454996435,-267.40674198,0.000232,2]
[366787529,1750454999116,-366.15828746,0.000232,2]
[366787531,1750455013878,1053.59602726,0.000231,2]
[366787539,1750455032371,-1200.0,0.00023199,2]
[366787540,1750455032383,-200.0,0.000232,2]
[366787541,1750455032395,-9289.67231047,0.000232,2]
[366787542,1750455032406,-38014.21206399,0.000232,2]
[366787543,1750455032432,-645.62115323,0.000232,2]
[366787544,1750455032442,-6209.4124813,0.00023288,2]
[366787545,1750455032452,-300.0,0.00023404,2]
[366787546,1750455032462,-300.0,0.00023404,2]
[366787547,1750455032472,-151.0,0.00023405,2]
[366787548,1750455032482,-490.0,0.00023405,2]
[366787549,1750455032492,-230.47821606,0.00023405,2]
[366787550,1750455032504,-259.52178394,0.00023405,2]
[366787551,1750455032514,-525.54285716,0.00023405,2]
[366787552,1750455032524,-333.88904242,0.00023405,2]
[366787553,1750455032534,-600.0,0.00023405,2]
[366787554,1750455032544,-600.0,0.00023405,2]
[366787555,1750455032554,-200.0,0.000235,2]
[366787556,1750455032564,-500.0,0.000236,2]
[366787557,1750455032574,-500.0,0.000236,2]
[366787558,1750455032585,-300.0,0.00023671,2]
[366787559,1750455032596,-362.79093352,0.00023774,2]
[366787560,1750455032606,-156.587,0.00023953,2]
[366787561,1750455032616,-150.0,0.00023981,2]
[366787564,1750455032626,-33636.9955237,0.00024,2]
[366787566,1750455032638,-600.0,0.00024,2]
[366787568,1750455032650,-600.0,0.00024,2]
[366787570,1750455032682,-800.0,0.00024,2]
[366787571,1750455032694,-1100.0,0.00024,2]
[366787572,1750455032707,-1000.0,0.00024,2]
[366787573,1750455032719,-1176.58272744,0.00024,2]
[366787586,1750455038329,-790.60082921,0.00024,2]
[366787587,1750455038386,-2419.86900619,0.00024,2]
[366787588,1750455038399,-551.72235442,0.00024,2]
[366787589,1750455038443,-320.88,0.00024,2]
[366787590,1750455038457,-2137.6,0.00024,2]
[366787591,1750455038503,-396.67857755,0.00024,2]
[366787592,1750455038516,-1184.32629068,0.00024,2]
[366787593,1750455038530,-1195.26113372,0.00024,2]
[366787727,1750455040461,-11968.20830238,0.00024,2]
[366787737,1750455040553,-85.98145459,0.00024,2]
[366787739,1750455040563,-271.76935519,0.00024,2]
[366787751,1750455040668,-718.86113231,0.00024,2]
[366787753,1750455040678,-685.54033002,0.00024,2]
[366787755,1750455040690,-366.58010149,0.00024,2]
[366787757,1750455040702,-813.072159,0.00024,2]
[366787803,1750455041106,-68.21064025,0.00024,2]
[366787808,1750455043336,-503.6474227,0.00023288,2]
[366787810,1750455043346,-369.06062799,0.00024,2]
[366787811,1750455043402,-713.24677809,0.00024,2]
[366787812,1750455043412,-500.0,0.00024,2]
[366787813,1750455043423,-328.21980537,0.00024,2]
[366787814,1750455043436,-600.0,0.00024,2]
[366787815,1750455043446,-600.0,0.00024,2]
[366787816,1750455043457,-250.0,0.00024025,2]
[366787817,1750455043467,-166.54,0.00024033,2]
[366787818,1750455043477,-1000.0,0.00024048,2]
[366787819,1750455043487,-5357.72829107,0.00024048,2]
[366787820,1750455043499,-616.36239535,0.00024048,2]
[366787821,1750455043511,-641.99246739,0.00024048,2]
[366787822,1750455043523,-565.99524606,0.00024048,2]
[366787823,1750455043544,-438.21841616,0.00024048,2]
[366787824,1750455043556,-5328.70897948,0.00024048,2]
[366787825,1750455043566,-135.22199794,0.0002407,2]
[366787826,1750455043658,-67.77800206,0.0002407,2]
[366787827,1750455043669,-171.10777,0.0002407,2]
[366787828,1750455043679,-398.56503,0.0002407,2]
[366787829,1750455043689,-2311.19284033,0.000241,2]
[366787830,1750455043698,-23900.0,0.00024127,2]
[366787831,1750455043708,-500.0,0.00024148,2]
[366787832,1750455043717,-1000.0,0.00024148,2]
[366787833,1750455043727,-409.42427681,0.0002421,2]
[366787834,1750455043737,-3588.44434906,0.0002421,2]
[366787835,1750455043748,-600.0,0.00024247,4]
[366787836,1750455043758,-150.0,0.000243,2]
[366787837,1750455043768,-365.0,0.0002437,2]
[366787838,1750455043778,-600.0,0.00024458,4]
[366787839,1750455043789,-531.69,0.00024468,2]
[366787840,1750455043799,-238.77,0.00024488,2]
[366787841,1750455043809,-238.77,0.00024494,2]
[366787842,1750455043818,-238.77,0.00024501,2]
[366787843,1750455043828,-162.380719,0.00024501,2]
[366787845,1750455043839,-238.77,0.00024507,2]
[366787846,1750455043849,-256.40696918,0.0002451,2]
[366787847,1750455043858,-238.77,0.00024513,2]
[366787848,1750455043869,-238.77,0.0002452,2]
[366787849,1750455043879,-238.77,0.00024526,2]
[366787850,1750455043889,-238.77,0.00024533,2]
[366787851,1750455043899,-238.77,0.00024539,2]
[366787852,1750455043909,-238.77,0.00024546,2]
[366787853,1750455043919,-1000.0,0.00024548,2]
[366787854,1750455043929,-238.77,0.00024552,2]
[366787855,1750455043939,-238.77,0.00024559,2]
[366787856,1750455043949,-238.77,0.00024565,2]
[366787857,1750455043959,-284.41,0.00024571,2]
[366787858,1750455043969,-238.77,0.00024571,2]
[366787859,1750455043979,-238.77,0.00024578,2]
[366787860,1750455043989,-168.0,0.00024582,7]
[366787861,1750455043998,-238.77,0.00024584,2]
[366787862,1750455044007,-238.77,0.00024591,2]
[366787863,1750455044017,-238.77,0.00024597,2]
[366787864,1750455044027,-238.77,0.00024604,2]
[366787865,1750455044037,-238.77,0.0002461,2]
[366787866,1750455044046,-12117.78,0.0002463,2]
[366787867,1750455044056,-579.40057341,0.0002465,2]
[366787868,1750455044066,-11589.1622459,0.0002465,2]
[366787869,1750455044076,-234.11761147,0.0002465,2]
[366787870,1750455044087,-666.0,0.00024673,2]
[366787871,1750455044097,-150.0,0.00024677,2]
[366787872,1750455044107,-1500.0,0.00024696,2]
[366787873,1750455044117,-168.0,0.00024722,2]
[366787874,1750455044128,-150.0,0.00024754,2]
[366787875,1750455044138,-360.0,0.00024759,2]
[366787876,1750455044148,-150.0,0.00024769,2]
[366787877,1750455044158,-168.0,0.00024879,2]
[366787878,1750455044168,-1853.21908995,0.000249,12]
[366787879,1750455044178,-151.0,0.00024959,2]
[366787880,1750455044188,-1616.89745024,0.00024959,2]
[366787881,1750455044198,-151.0,0.00024959,2]
[366787882,1750455044207,-151.0,0.00024959,2]
[366787883,1750455044217,-151.0,0.00024959,2]
[366787884,1750455044227,-151.0,0.00024959,2]
[366787885,1750455044236,-236.0,0.00024959,2]
[366787886,1750455044246,-668.65185757,0.00024959,2]
[366787887,1750455044256,-500.0,0.00024959,2]
[366787888,1750455044266,-500.0,0.00024959,2]
[366787889,1750455044277,-500.0,0.00024959,2]
[366787890,1750455044286,-500.0,0.00024959,2]
[366787891,1750455044296,-334.96,0.00024959,2]
[366787892,1750455044306,-207.4,0.00024959,2]
[366787893,1750455044315,-166.0,0.00025,7]
[366787894,1750455044325,-159.828,0.00025,2]
[366787895,1750455044336,-168.0,0.00025008,2]
[366787896,1750455044345,-150.0,0.00025017,2]
[366787897,1750455044354,-236.54,0.00025025,2]
[366787898,1750455044364,-168.3888056,0.00025049,2]
[366787899,1750455044374,-399.12982782,0.00025096,2]
[366787900,1750455044386,-3000.0,0.00025205,4]
[366787901,1750455044395,-1409.17458947,0.00025244,2]
[366787902,1750455044405,-150.0,0.00025247,2]
[366787903,1750455044416,-150.0,0.00025265,2]
[366787904,1750455044425,-229.62,0.00025285,2]
[366787905,1750455044435,-1680.0,0.00025295,2]
[366787906,1750455044446,-190.77369503,0.00025296,2]
[366787907,1750455044456,-150.0,0.00025307,2]
[366787908,1750455044465,-150.0,0.00025319,2]
[366787909,1750455044476,-1853.21908971,0.00025348,13]
[366787910,1750455044486,-150.0,0.00025371,2]
[366787911,1750455044496,-420.0,0.00025396,2]
[366787912,1750455044506,-150.0,0.00025458,2]
[366787913,1750455044515,-2000.0,0.000255,2]
[366787914,1750455044525,-150.0,0.00025509,2]
[366787915,1750455044535,-174.61919141,0.00025597,2]
[366787916,1750455044546,-203.0,0.00025633,4]
[366787917,1750455044557,-360.0,0.00025688,2]
[366787918,1750455044566,-1000.0,0.000257,2]
[366787919,1750455044576,-813.0722,0.000257,2]
[366787920,1750455044587,-150.0,0.0002574,2]
[366787921,1750455044597,-300.0,0.00025746,2]
[366787922,1750455044608,-204.16252368,0.00025763,2]
[366787923,1750455044619,-204.16252368,0.00025788,2]
[366787924,1750455044629,-232.17153912,0.0002579,2]
[366787925,1750455044639,-229.62,0.0002579,2]
[366787926,1750455044648,-197.76,0.0002579,2]
[366787927,1750455044658,-364.0,0.00025793,2]
[366787928,1750455044669,-1853.21908971,0.00025797,13]
[366787929,1750455044679,-66124.4362,0.000258,2]
[366787930,1750455044690,-204.16252368,0.00025813,2]
[366787931,1750455044700,-204.16252368,0.00025837,2]
[366787932,1750455044711,-8819.26445482,0.00025838,2]
[366787933,1750455044721,-204.16252368,0.00025862,2]
[366787934,1750455044731,-229.62,0.00025879,2]
[366787935,1750455044742,-216.94593666,0.00025879,2]
[366787936,1750455044752,-183.19535941,0.00025879,2]
[366787937,1750455044763,-171.68704613,0.00025879,2]
[366787938,1750455044773,-272.90778762,0.00025879,2]
[366787939,1750455044783,-500.0,0.00025879,2]
[366787940,1750455044794,-500.0,0.00025879,2]
[366787941,1750455044804,-500.0,0.00025879,2]
[366787942,1750455044815,-500.0,0.00025879,2]
[366787943,1750455044826,-500.0,0.00025879,2]
[366787944,1750455044836,-496.17640487,0.00025879,2]
[366787945,1750455044846,-500.0,0.00025879,2]
[366787946,1750455044856,-500.0,0.00025879,2]
[366787947,1750455044867,-426.94894272,0.00025879,2]
[366787948,1750455044876,-500.0,0.00025879,2]
[366787949,1750455044886,-500.0,0.00025879,2]
[366787950,1750455044897,-500.0,0.00025879,2]
[366787951,1750455044907,-400.0,0.00025879,2]
[366787952,1750455044918,-500.0,0.00025879,2]
[366787953,1750455044929,-500.0,0.00025879,2]
[366787954,1750455044939,-500.0,0.00025879,2]
[366787955,1750455044949,-429.17053521,0.00025879,2]
[366787956,1750455044959,-500.0,0.00025879,2]
[366787957,1750455044970,-500.0,0.00025879,2]
[366787958,1750455044980,-500.0,0.00025879,2]
[366787959,1750455044989,-500.0,0.00025879,2]
[366787960,1750455044999,-500.0,0.00025879,2]
[366787961,1750455045009,-500.0,0.00025879,2]
[366787962,1750455045019,-500.0,0.00025879,2]
[366787963,1750455045030,-500.0,0.00025879,2]
[366787964,1750455045040,-500.0,0.00025879,2]
[366787965,1750455045050,-500.0,0.00025879,2]
[366787966,1750455045060,-500.0,0.00025879,2]
[366787967,1750455045070,-500.0,0.00025879,2]
[366787968,1750455045079,-500.0,0.00025879,2]
[366787969,1750455045089,-500.0,0.00025879,2]
[366787970,1750455045099,-214.99781922,0.00025879,2]
[366787971,1750455045109,-1043960.91502364,0.0002588,4]
[366787972,1750455045123,-26974.86313375,0.0002588,4]
[366787973,1750455045147,-2401.5903362,0.0002588,4]
[366787974,1750455045921,1986.0,0.000247,120]
[366787977,1750455046315,-500.0,0.00025879,2]
[366787978,1750455046325,-2842.40243415,0.0002588,4]
[366787979,1750455046373,-4462.69279267,0.0002588,4]
[366787980,1750455046433,-203734.53627959,0.0002588,4]
[366787981,1750455046443,-204.16252368,0.00025887,2]
[366787982,1750455046453,-490.0,0.00025888,4]
[366787983,1750455046463,-490.0,0.00025888,4]
[366787984,1750455046473,-490.0,0.00025888,4]
[366787985,1750455046483,-490.0,0.00025888,4]
[366787986,1750455046492,-490.0,0.00025888,4]
[366787987,1750455046502,-546.45,0.00025888,4]
[366787988,1750455046512,-414.82597448,0.00025888,4]
[366787989,1750455046522,-490.0,0.00025888,4]
[366787990,1750455046532,-490.0,0.00025888,4]
[366787991,1750455046543,-490.0,0.00025888,4]
[366787992,1750455046553,-490.0,0.00025888,4]
[366787993,1750455046563,-490.0,0.00025888,4]
[366787994,1750455046574,-490.0,0.00025888,4]
[366787995,1750455046584,-490.0,0.00025888,4]
[366787996,1750455046594,-490.0,0.00025888,4]
[366787997,1750455046604,-490.0,0.00025888,2]
[366787998,1750455046614,-490.0,0.00025888,4]
[366787999,1750455046624,-490.0,0.00025888,4]
[366788000,1750455046635,-490.0,0.00025888,4]
[366788001,1750455046645,-490.0,0.00025888,4]
[366788002,1750455046656,-490.0,0.00025888,4]
[366788003,1750455046666,-490.0,0.00025888,4]
[366788004,1750455046676,-490.0,0.00025888,4]
[366788005,1750455046686,-401.89436926,0.00025888,4]
[366788006,1750455046696,-490.0,0.00025888,4]
[366788007,1750455046706,-490.0,0.00025888,4]
[366788008,1750455046715,-490.0,0.00025888,4]
[366788009,1750455046726,-490.0,0.00025888,4]
[366788010,1750455046736,-490.0,0.00025888,4]
[366788011,1750455046746,-490.0,0.00025888,4]
[366788014,1750455046959,-490.0,0.00025888,4]
[366788015,1750455047027,-223.31154141,0.00025888,2]
[366788016,1750455047037,-490.0,0.00025888,2]
[366788017,1750455047047,-490.0,0.00025888,4]
[366788018,1750455047058,-490.0,0.00025888,4]
[366788019,1750455047068,-490.0,0.00025888,4]
[366788020,1750455047078,-490.0,0.00025888,4]
[366788021,1750455047088,-490.0,0.00025888,4]
[366788022,1750455047098,-490.0,0.00025888,4]
[366788023,1750455047108,-490.0,0.00025888,4]
[366788024,1750455047118,-490.0,0.00025888,4]
[366788025,1750455047128,-490.0,0.00025888,4]
[366788026,1750455047138,-490.0,0.00025888,4]
[366788027,1750455047147,-490.0,0.00025888,4]
[366788028,1750455047157,-490.0,0.00025888,4]
[366788029,1750455047166,-490.0,0.00025888,4]
[366788030,1750455047176,-490.0,0.00025888,4]
[366788031,1750455047186,-229.62,0.00025888,2]
[366788032,1750455047196,-12650.8705987,0.00025889,2]
[366788033,1750455047205,-229.62,0.00025889,2]
[366788034,1750455047215,-11717.92483916,0.0002589,2]
[366788035,1750455047224,-1084.26032,0.0002589,2]
[366788036,1750455047234,-166.0,0.0002589,7]
[366788037,1750455047243,-490.0,0.00025898,4]
[366788038,1750455047253,-490.0,0.00025898,4]
[366788039,1750455047262,-490.0,0.00025898,4]
[366788040,1750455047272,-490.0,0.00025898,4]
[366788041,1750455047281,-490.0,0.00025898,4]
[366788042,1750455047292,-490.0,0.00025898,4]
[366788043,1750455047302,-483.49130023,0.00025898,4]
[366788044,1750455047311,-490.0,0.00025898,4]
[366788045,1750455047321,-490.0,0.00025898,4]
[366788046,1750455047332,-490.0,0.00025898,4]
[366788047,1750455047343,-347.94980781,0.00025898,4]
[366788048,1750455047352,-500.0,0.00025898,4]
[366788049,1750455047362,-490.0,0.00025898,4]
[366788050,1750455047371,-490.0,0.00025898,4]
[366788051,1750455047381,-490.0,0.00025898,4]
[366788052,1750455047394,-490.0,0.00025898,4]
[366788053,1750455047404,-490.0,0.00025898,4]
[366788054,1750455047414,-490.0,0.00025898,4]
[366788055,1750455047423,-490.0,0.00025898,4]
[366788056,1750455047434,-490.0,0.00025898,4]
[366788057,1750455047444,-490.0,0.00025898,4]
[366788058,1750455047454,-598.86881477,0.00025898,4]
[366788059,1750455047464,-530.45,0.00025898,4]
[366788060,1750455047474,-490.0,0.00025898,4]
[366788061,1750455047484,-490.0,0.00025898,4]
[366788062,1750455047494,-512.57059795,0.00025898,4]
[366788063,1750455047503,-490.0,0.00025898,4]
[366788064,1750455047513,-490.0,0.00025898,4]
[366788065,1750455047523,-490.0,0.00025898,4]
[366788066,1750455047533,-490.0,0.00025898,4]
[366788067,1750455047543,-490.0,0.00025898,4]
[366788068,1750455047553,-350.0,0.00025898,4]
[366788069,1750455047563,-490.0,0.00025898,4]
[366788070,1750455047574,-490.0,0.00025898,4]
[366788071,1750455047583,-490.0,0.00025898,4]
[366788072,1750455047593,-490.0,0.00025898,4]
[366788073,1750455047603,-490.0,0.00025898,4]
[366788074,1750455047614,-490.0,0.00025898,4]
[366788075,1750455047627,-490.0,0.00025898,4]
[366788076,1750455047637,-490.0,0.00025898,4]
[366788077,1750455047647,-925.15,0.00025898,4]
[366788078,1750455047656,-490.0,0.00025898,4]
[366788079,1750455047666,-490.0,0.00025898,4]
[366788080,1750455047675,-490.0,0.00025898,4]
[366788081,1750455047685,-490.0,0.00025898,4]
[366788082,1750455047696,-490.0,0.00025898,4]
[366788083,1750455047706,-535.25448862,0.00025898,4]
[366788084,1750455047716,-621.23,0.00025898,4]
[366788085,1750455047726,-490.0,0.00025898,4]
[366788086,1750455047736,-500.0,0.00025898,4]
[366788087,1750455047746,-277.63949149,0.00025898,4]
[366788088,1750455047757,-1126.33,0.00025898,4]
[366788089,1750455047766,-522.1,0.00025898,4]
[366788090,1750455047777,-432.0254003,0.00025898,4]
[366788091,1750455047788,-490.0,0.00025898,4]
[366788092,1750455047797,-490.0,0.00025898,4]
[366788093,1750455047807,-490.0,0.00025898,4]
[366788094,1750455047817,-490.0,0.00025898,4]
[366788095,1750455047828,-490.0,0.00025898,4]
[366788096,1750455047838,-499.5,0.00025898,4]
[366788097,1750455047847,-490.0,0.00025898,4]
[366788098,1750455047858,-490.0,0.00025898,4]
[366788099,1750455047869,-1736.6,0.00025898,4]
[366788100,1750455047879,-490.0,0.00025898,4]
[366788101,1750455047888,-490.0,0.00025898,4]
[366788102,1750455047898,-490.0,0.00025898,4]
[366788103,1750455047909,-420.0,0.00025898,4]
[366788104,1750455047919,-490.0,0.00025898,4]
[366788105,1750455047929,-490.0,0.00025898,4]
[366788106,1750455047939,-490.0,0.00025898,4]
[366788107,1750455047948,-490.0,0.00025898,4]
[366788108,1750455047959,-490.0,0.00025899,4]
[366788109,1750455047970,-490.0,0.00025899,4]
[366788110,1750455047980,-490.0,0.00025899,4]
[366788111,1750455047992,-660.84,0.00025899,4]
[366788112,1750455048003,-490.0,0.00025899,4]
[366788113,1750455048013,-490.0,0.00025899,4]
[366788114,1750455048023,-680.6,0.00025899,4]
[366788115,1750455048033,-638.67,0.00025899,4]
[366788116,1750455048043,-490.0,0.00025899,4]
[366788117,1750455048053,-490.0,0.00025899,4]
[366788118,1750455048063,-490.0,0.00025899,4]
[366788119,1750455048073,-420.0,0.00025899,4]
[366788120,1750455048083,-510.93,0.00025899,4]
[366788121,1750455048093,-490.0,0.00025899,4]
[366788122,1750455048102,-490.0,0.00025899,4]
[366788123,1750455048112,-490.0,0.00025899,4]
[366788124,1750455048122,-490.0,0.00025899,4]
[366788125,1750455048132,-841.65,0.00025899,4]
[366788126,1750455048142,-490.0,0.00025899,4]
[366788127,1750455048152,-490.0,0.00025899,4]
[366788128,1750455048161,-490.0,0.00025899,4]
[366788129,1750455048171,-490.0,0.00025899,4]
[366788130,1750455048180,-490.0,0.00025899,4]
[366788131,1750455048189,-490.0,0.00025899,4]
[366788132,1750455048200,-490.0,0.00025899,4]
[366788133,1750455048210,-584.58640745,0.00025899,4]
[366788134,1750455048219,-490.0,0.00025899,4]
[366788135,1750455048229,-490.0,0.00025899,4]
[366788136,1750455048239,-490.0,0.00025899,4]
[366788137,1750455048249,-490.0,0.00025899,4]